Cogmind - Beta 14 @@@ ROGUE MODE // 2024.08.09 @ 16:58:22 Player: Wesmed Result: Self-destructed Performance ------------- Evolutions (5) 2500 Regions Visited (5) 1000 Robots Destroyed (34) 170 Value Destroyed (894) 894 Prototype IDs (6) 120 Alien Tech Used (0) 0 Bonus (340) 340 TOTAL SCORE: 5024 Bonus ------- Follower Combat Kills 60 Registered with UFD 300 Friendly Fire -20 Cogmind --------- Core Integrity 843/1000 Matter 212/300 Energy 840/840 System Corruption 8% Temperature Hot (280) Movement Rolling (100) Location -5/Factory Parts ------- > --- POWER (2) -------- Deuterium Engine Neutrino Core > --- PROPULSION (4) --- Armored Wheel Subdweller Monowheel Armored Huge Wheel (fused) > --- UTILITY (8) ------ Scrap Suit Energy Well Improved Kinecellerator Improved Light Armor Plating System Shield > --- WEAPON (3) ------- Minigun Improved Grenade Launcher > --- INVENTORY (5) ---- Carbon-fiber Leg Scrap Suit Scrapoid Pod Peak State ------------ > --- POWER ------------ Deuterium Engine Neutrino Core > --- PROPULSION ------- Armored Wheel Subdweller Monowheel Armored Huge Wheel > --- UTILITY ---------- Scrap Suit Humpback Energy Well Improved Kinecellerator Improved Light Armor Plating System Shield > --- WEAPON ----------- Heavy Laser Thermic Laser Heavy Battle Rifle > --- INVENTORY -------- Light Nuclear Core Improved Deuterium Engine Improved Deuterium Engine Makeshift Power Source Overtuned Treads Medium Treads Carbon-fiber Leg Carbon-fiber Leg Titanium Leg Improved Titanium Leg Flexi-carbon Leg Wheel Wheel Subdweller Monowheel Scrap Suit Matter Compressor Terrain Scan Processor Seismic Detector Kinecellerator Weapon Cycler Scrapoid Pod Improved Arc Projector Gatling Laser EM Pulse Cannon Subdweller Machine Gun Minigun Heavy Battle Rifle Hypervelocity Gauss Rifle Improved Grenade Launcher Dirty Datajack Flamer Power Maul [Rating: 73] Favorites ----------- Power Micro Nuclear Core Engine Ion Engine Power Core Micro Nuclear Core Propulsion Armored Huge Wheel Treads Light Treads Wheel Armored Huge Wheel Utility Humpback Device Improved Terrain Scanner Storage Humpback Hackware System Shield Protection Improved Light Armor Plating Weapon Subdweller Machine Gun Energy Gun Small Laser Energy Cannon EM Pulse Cannon Ballistic Gun Subdweller Machine Gun Launcher Improved Grenade Launcher Impact Weapon Power Maul Build | -11 -10 -10 -7 -7 -5 ------- Run | Yrd Mat Sub Rec Scr Fac Slots Evolved 10 | . . . . . 10 Power 1 | . . . . . 1 Propulsion 2 | . . . . . 2 Utility 6 | . . . . . 6 Weapon 1 | . . . . . 1 Parts Attached 53 | 7 2 12 4 4 24 Power 6 | 1 . 1 1 . 3 Engine 4 | 1 . 1 . . 2 Core 2 | . . . 1 . 1 Reactor . | . . . . . . Propulsion 13 | 2 . 4 3 1 3 Treads 1 | . . . 1 . . Leg . | . . . . . . Wheel 12 | 2 . 4 2 1 3 Hover . | . . . . . . Flight . | . . . . . . Utility 16 | 2 1 2 . . 11 Device 9 | 1 . . . . 8 Storage 4 | 1 1 1 . . 1 Processor . | . . . . . . Hackware 1 | . . . . . 1 Protection 2 | . . 1 . . 1 Artifact . | . . . . . . Weapon 18 | 2 1 5 . 3 7 Energy Gun 8 | 2 1 2 . 1 2 Energy Cannon 1 | . . . . 1 . Ballistic Gun 7 | . . 3 . 1 3 Ballistic Cannon . | . . . . . . Launcher 1 | . . . . . 1 Special Weapon . | . . . . . . Impact Weapon 1 | . . . . . 1 Slashing Weapon . | . . . . . . Piercing Weapon . | . . . . . . Special Melee Weapon . | . . . . . . Unidentified Prototypes . | . . . . . . Parts Lost 10 | . 1 1 . . 8 Power 3 | . . 1 . . 2 Propulsion 1 | . 1 . . . . Utility 3 | . . . . . 3 Weapon 3 | . . . . . 3 Highest Loss Streak 5 | . 1 1 . . 5 To Critical Strikes . | . . . . . . Average Slot Usage (%) 62 | . 98 91 81 43 74 Engine 4 | . 14 14 4 . 3 Core 9 | . . . 9 14 3 Wheel 18 | . 26 27 25 14 17 Device 3 | . 14 6 . . 15 Storage 13 | . 14 10 14 14 11 Energy Gun 4 | . 28 10 . . 7 Ballistic Gun 7 | . . 17 26 . 8 Peak Build Rating 73 | 9 9 16 19 31 73 Average Rating 23 | 5 8 13 17 22 61 On Entrance 13 | . 9 8 16 16 31 Naked Turns . | . . . . . . Heaviest Build 252 | 14 29 211 212 212 252 Greatest Support 60 | 26 26 30 30 28 60 Greatest Overweight (x) 21 | . 2 7 21 7 4 Average Overweight (x) 5 | . 1 2 8 7 3 Largest Inventory Capacity 35 | 8 15 35 35 35 35 Average Capacity 30 | 7 14 17 35 35 35 Most Carried 35 | 4 8 25 35 35 35 Average Carried 27 | 3 5 11 30 34 32 Final Capacity 35 | 8 15 35 35 35 5 Final Carried 35 | 4 8 25 35 35 5 Class Distribution -------------------- 71% | Hauler-Mutant 8% | Mutant 6% | Scavenger-Mutant 5% | Hauler-Skirmisher 4% | Subdweller-Mutant Dominant Class ---------------- Mutant | -10/Materials Scavenger-Mutant | -10/Subcaves Hauler-Mutant | -7/Recycling Hauler-Mutant | -7/Scraptown Hauler-Skirmisher | -5/Factory Resources | -11 -10 -10 -7 -7 -5 ----------- Run | Yrd Mat Sub Rec Scr Fac Matter Collected 1360 | 243 42 190 129 98 658 Remotely 55 | . . . . . 55 Salvage Created 1583 | 14 58 238 552 . 721 Parts 77 | 2 3 17 21 . 34 Haulers Intercepted . | . . . . . . Recyclers Shooed 2 | . . . 2 . . Parts Field Recycled . | . . . . . . Retrieved Matter . | . . . . . . Parts Self-Destructed 19 | . . 19 . . . Prevented . | . . . . . . Kills | -11 -10 -10 -7 -7 -5 ------- Run | Yrd Mat Sub Rec Scr Fac Combat Hostiles Destroyed 20 | . 3 5 3 . 9 Guns 19 | . 3 5 3 . 8 AOE 1 | . . . . . 1 Classes Destroyed 14 | 1 1 3 4 . 5 Worker 2 | . . . . . 2 Builder 2 | . . . . . 2 Tunneler 1 | 1 . . . . . Recycler 7 | . . . 5 . 2 Turret 1 | . . 1 . . . Watcher 1 | . . . . . 1 Swarmer 8 | . 3 1 . . 4 Grunt 4 | . . 2 . . 2 Brawler 1 | . . . 1 . . Sentry 1 | . . . 1 . . Specialist 1 | . . . . . 1 Hunter 2 | . . . . . 2 Programmer 1 | . . . 1 . . Subdweller 2 | . . 2 . . . Best Kill Streak 5 | 1 3 3 5 . 4 Combat Bots Only 3 | . 3 3 2 . 3 Max Kills in Single Turn 2 | 1 1 1 2 . 2 Gunslinging 1 | . . . . . 1 Exploded 1 | . . . . . 1 Melee . | . . . . . . Uniques/NPCs Destroyed . | . . . . . . Combat | -11 -10 -10 -7 -7 -5 -------- Run | Yrd Mat Sub Rec Scr Fac Hostile Shots Fired 277 | . 27 34 60 . 156 Missed 77 | . 5 12 22 . 38 Damage Taken 2433 | . 168 240 235 . 1790 Core 313 | . 36 66 54 . 157 Absorbed by Shields 182 | . . . 118 . 64 Regen/Repaired (Parts) 193 | . . . . 90 103 Core Remaining (%) 68 | 100 . . . 37 . Volleys Fired 122 | 12 7 42 17 . 44 Largest 3 | 1 2 2 2 . 3 Hottest 187 | 40 80 90 55 . 187 Shots Fired 269 | 12 14 80 33 . 130 Gun 268 | 12 14 80 33 . 129 Cannon . | . . . . . . Launcher 1 | . . . . . 1 Special . | . . . . . . Kinetic 136 | . . 31 33 . 72 Thermal 132 | 12 14 49 . . 57 Explosive 1 | . . . . . 1 Electromagnetic . | . . . . . . Robot Hit Streak 11 | 2 3 11 8 . 11 Robot Miss Streak 6 | 6 2 1 2 . 6 Penetration Max . | . . . . . . Secondary Targets 2 | . . . . . 2 Max Gunslinging Chain 1 | . . . . . 1 Shots Hit Robots 145 | 4 7 34 20 . 80 Core Hits 66 | 1 3 14 12 . 36 Critical Kills 1 | . . . . . 1 Critical Parts Destroyed . | . . . . . . Critical Strikes 8 | . . . . . 8 Burn 7 | . . . . . 7 Destroy 1 | . . . . . 1 Melee Attacks 2 | . . . . . 2 Impact 2 | . . . . . 2 Slashing . | . . . . . . Piercing . | . . . . . . Sneak Attacks . | . . . . . . Combat Hostiles . | . . . . . . Follow-up Attacks . | . . . . . . Damage Inflicted 2618 | 56 75 435 382 . 1670 Guns 2415 | 56 75 435 382 . 1467 Cannons . | . . . . . . Explosions 203 | . . . . . 203 Melee . | . . . . . . Ramming . | . . . . . . Kinetic 1206 | . . 101 382 . 723 Thermal 1209 | 56 75 334 . . 744 Explosive 203 | . . . . . 203 Electromagnetic . | . . . . . . Impact . | . . . . . . Slashing . | . . . . . . Piercing . | . . . . . . Highest Corruption 7 | . . . 1 1 7 Average Corruption 1 | . . . 1 1 5 Corruption Purged . | . . . . . . Corruption Blocked . | . . . . . . Effects 51 | . . . 9 31 11 Message Errors 10 | . . . . 7 3 Matter Fused 13 | . . . 2 7 4 Heat Flow Errors 7 | . . . 1 4 2 Energy Discharges 8 | . . . 1 6 1 Parts Rejected 1 | . . . . . 1 Parts Fused 2 | . . . 1 1 . Data Loss (minor) 7 | . . . 2 5 . Data Loss (major) 1 | . . . . 1 . Alerts 1 | . . . 1 . . Weapon Failures 1 | . . . 1 . . Overload Shots . | . . . . . . Overflow Damage . | . . . . . . Projectiles . | . . . . . . Explosions . | . . . . . . Melee . | . . . . . . Knockbacks . | . . . . . . Impact . | . . . . . . Kinetic . | . . . . . . Secondary . | . . . . . . Self-Inflicted Damage 24 | . . . . . 24 Shots 1 | . . . . . 1 Rammed . | . . . . . . Targets Rammed . | . . . . . . Kicked . | . . . . . . Crushed . | . . . . . . Highest Temperature 338 | . 126 . 140 256 338 Average Temperature 93 | . 63 . 33 109 118 Received Heat Transfer 234 | . . 108 36 . 90 Effects 3 | . . . . 1 2 Energy Bleed 1 | . . . . 1 . Matter Decay 1 | . . . . . 1 Short Circuit 1 | . . . . . 1 Siege Activations . | . . . . . . Robots Corrupted . | . . . . . . Combat Hostiles . | . . . . . . Parts Fried . | . . . . . . Impact Corruptions . | . . . . . . Robots Melted . | . . . . . . Combat Hostiles . | . . . . . . Parts Melted 9 | . 1 . . . 8 Heat Transferred 3594 | 125 175 750 . . 2544 Parts Sabotaged . | . . . . . . Parts Stolen . | . . . . . . Parts Stripped . | . . . . . . Power Chain Reactions . | . . . . . . Alert | -11 -10 -10 -7 -7 -5 ------- Run | Yrd Mat Sub Rec Scr Fac Peak Influence 159 | 5 85 . 85 . 159 Initial 3 | . 3 . . . . Average 33 | 1 42 . 16 . 53 Maximum Alert Level . | . . . . . . Low Security (%) 100 | 100 100 . 100 . 100 Level 1 . | . . . . . . Level 2 . | . . . . . . Level 3 . | . . . . . . Level 4 . | . . . . . . Level 5 . | . . . . . . High Security . | . . . . . . Max Security . | . . . . . . Squads Dispatched 4 | . . . . . 4 Investigation 2 | . . . . . 2 Extermination 1 | . . . . . 1 Reinforcement 1 | . . . . . 1 Assault . | . . . . . . Garrison . | . . . . . . Intercept . | . . . . . . Searches Triggered . | . . . . . . Construction Impeded . | . . . . . . Haulers Reinforced . | . . . . . . Active Scanning Responses . | . . . . . . Cargo Convoy Interrupts . | . . . . . . Stealth | -11 -10 -10 -7 -7 -5 --------- Run | Yrd Mat Sub Rec Scr Fac Distress Signals 2 | . 2 . . . . Communications Jammed 3 | . . . . . 3 Distress Signals 1 | . . . . . 1 Times Spotted 42 | . 8 9 4 . 21 Peak Tracking Total 6 | . 5 5 2 . 6 Tactical Retreats 6 | . 2 2 . . 2 Traps | -11 -10 -10 -7 -7 -5 ------- Run | Yrd Mat Sub Rec Scr Fac Traps Triggered 2 | . . 1 . . 1 Indirectly . | . . . . . . Trap Hack Attempts . | . . . . . . Triggered . | . . . . . . Disarmed . | . . . . . . Reprogrammed . | . . . . . . Reused . | . . . . . . Traps Extracted . | . . . . . . Installed . | . . . . . . Triggered . | . . . . . . Machines | -11 -10 -10 -7 -7 -5 ---------- Run | Yrd Mat Sub Rec Scr Fac Machines Disabled . | . . . . . . Max in Single Turn . | . . . . . . Machines Repaired . | . . . . . . Machines Dismantled . | . . . . . . Machines Sabotaged . | . . . . . . Overloaded Fab Kills . | . . . . . . Hacking | -11 -10 -10 -7 -7 -5 --------- Run | Yrd Mat Sub Rec Scr Fac Machines Accessed 15 | . 2 . 7 5 1 Terminals 6 | . 2 . 4 . . Fabricators . | . . . . . . Repair Stations . | . . . . . . Recycling Units 4 | . . . 3 . 1 Scanalyzers . | . . . . . . Garrison Access . | . . . . . . Total Hacks 40 | . 5 . 12 22 1 Successful 29 | . 1 . 5 22 1 Failed 11 | . 4 . 7 . . Catastrophic 4 | . 2 . 2 . . Database Lockouts . | . . . . . . Manual 18 | . 5 . 12 . 1 Terminals 13 | . 5 . 8 . . Fabricators . | . . . . . . Repair Stations . | . . . . . . Recycling Units 5 | . . . 4 . 1 Scanalyzers . | . . . . . . Garrison Access . | . . . . . . Terminal Hacks 23 | . 1 . . 22 . Record 16 | . . . . 16 . Part Schematic 1 | . 1 . . . . Robot Analysis 5 | . . . . 5 . Derelict Proto ID Bank 1 | . . . . 1 . Fabricator Hacks . | . . . . . . Repair Station Hacks . | . . . . . . Recycling Unit Hacks . | . . . . . . Scanalyzer . | . . . . . . Garrison Access Hacks . | . . . . . . Unauthorized Hacks 6 | . . . 5 . 1 Terminals 2 | . . . 2 . . Botnet 2 | . . . 2 . . Fabricators . | . . . . . . Repair Stations 1 | . . . . . 1 Recycling Units 3 | . . . 3 . . Reject 3 | . . . 3 . . Fedlink 1 | . . . . . 1 Scanalyzers . | . . . . . . Garrison Access . | . . . . . . Data Cores Recovered . | . . . . . . Used . | . . . . . . Hacking Detections 7 | . 2 . 5 . . Full Trace Events . | . . . . . . Feedback Events . | . . . . . . Feedback Blocked . | . . . . . . Robot Schematics Acquired . | . . . . . . Robots Built . | . . . . . . Authchips . | . . . . . . Time . | . . . . . . Total Robot Build Rating . | . . . . . . Part Schematics Acquired 1 | . 1 . . . . Parts Built . | . . . . . . Authchips . | . . . . . . Time . | . . . . . . Total Part Build Rating . | . . . . . . Parts Repaired . | . . . . . . Time . | . . . . . . Parts Recycled . | . . . . . . Recycled Matter . | . . . . . . Retrieved Matter . | . . . . . . Retrieved Components . | . . . . . . Parts Scanalyzed . | . . . . . . Part Schematics Acquired . | . . . . . . Parts Damaged . | . . . . . . Bothacking | -11 -10 -10 -7 -7 -5 ------------ Run | Yrd Mat Sub Rec Scr Fac Used RIF Installer . | . . . . . . Robots Hacked . | . . . . . . Non-combat . | . . . . . . Combat . | . . . . . . Robot Hacks Applied . | . . . . . . Relay Couplers Released . | . . . . . . Fabnet Peak Effective % . | . . . . . . Robots Rewired 4 | . . . 4 . . Allies Hacked . | . . . . . . Hacks Repelled . | . . . . . . Allies | -11 -10 -10 -7 -7 -5 -------- Run | Yrd Mat Sub Rec Scr Fac Total Allies 4 | . . . 4 . . Largest Group 4 | . . . 4 4 4 Highest-Rated Group 74 | . . . 74 74 74 Highest-Rated Ally 40 | . . . 40 40 40 Total Orders . | . . . . . . Ally Attacks 19 | . . . 10 . 9 Total Damage 198 | . . . 100 . 98 Kills 2 | . . . 1 . 1 Allies Corrupted . | . . . . . . Allies Melted . | . . . . . . Intel | -11 -10 -10 -7 -7 -5 ------- Run | Yrd Mat Sub Rec Scr Fac Robot Analysis Total 5 | . . . . 5 . Derelict Logs Recovered 5 | . . . . 5 . Drone Launches . | . . . . . . Drone Recoveries . | . . . . . . Exploration | -11 -10 -10 -7 -7 -5 ------------- Run | Yrd Mat Sub Rec Scr Fac Turns Passed 8547 | 112 514 1394 1124 4515 888 Spaces Moved 4219 | 80 209 874 472 2185 399 Core 1 | 1 . . . . . Treads 1 | . . . 1 . . Legs . | . . . . . . Wheels 4217 | 79 209 874 471 2185 399 Hover . | . . . . . . Flight . | . . . . . . Fastest Speed 50 | 50 90 95 179 195 139 Average Speed 176 | 89 105 126 213 204 144 Slowest Speed 960 | 100 110 179 960 205 152 Overloaded Moves . | . . . . . . Propulsion Burnouts . | . . . . . . Robots Hopped . | . . . . . . Cave-ins Triggered . | . . . . . . Exploration Rate (%) 43 | 3 26 40 87 94 9 Regions Visited 5 Branch Regions 3 Pre-discovered Areas 1 | . . . . 1 . Known Exits Taken . | . . . . . . Unknown Exits Taken 5 | 1 1 1 1 1 . Scrap Searched 9 | . . 2 . 7 . Spaces Dug 2 | . . . . . 2 Terrain Destroyed 13 | . . . 2 . 11 Melee 2 | . . . . . 2 Projectile 3 | . . . 2 . 1 AOE 8 | . . . . . 8 Terrain Rammed . | . . . . . . Walls Destroyed . | . . . . . . Machines Disabled . | . . . . . . Actions | -11 -10 -10 -7 -7 -5 --------- Run | Yrd Mat Sub Rec Scr Fac Total 5084 | 104 488 1084 555 2247 606 Wait 534 | 2 266 106 33 9 118 Move 4214 | 79 208 873 471 2184 399 Hop . | . . . . . . Pick Up 83 | 4 4 32 7 23 13 Fast Attach 24 | 7 . 6 2 4 5 Attach 14 | . . 1 . . 13 Detach 5 | . . . 3 1 1 Swap 15 | . 2 5 2 . 6 Drop 51 | . 1 17 2 26 5 Fire 122 | 12 7 42 17 . 44 Melee 2 | . . . . . 2 Ram . | . . . . . . Kick . | . . . . . . Crush . | . . . . . . Escape Stasis . | . . . . . . Rewire 18 | . . . 18 . . Trap . | . . . . . . Miscellaneous 2 | . . 2 . . . Route ------- -11/Scrapyard -10/Materials (discovered 2 exits: [*Mat] / [*Sub]) -10/Subcaves -7/Recycling (discovered 2 exits: *Fac / *Scr) -7/Scraptown (discovered 2 exits: *Fac x2) -5/Factory (discovered 1 exit: Ext) History --------- Turn | Location | Event 2 | -11/Scrapyard | Met Revision 17 6 | -11/Scrapyard | Discovered new exit (range 15) 113 | -11/Scrapyard | Entered Materials 174 | -10/Materials | Discovered new exit (range 15) 315 | -10/Materials | Build established: Mutant 611 | -10/Materials | Discovered new exit (range 12) 627 | -10/Materials | Entered Subcaves 799 | -10/Subcaves | Discovered new exit (range 14) 864 | -10/Subcaves | Shifting Twisted Machinery released Shrapnel Trap 1044 | -10/Subcaves | Build established: Scavenger-Mutant 1416 | -10/Subcaves | Shifting Twisted Machinery released Battle Rifle 1584 | -10/Subcaves | Build established: Subdweller-Mutant 1956 | -10/Subcaves | Build established: Hauler-Mutant 2021 | -10/Subcaves | Entered Recycling 2387 | -7/Recycling | Core integrity fell below 50% 2758 | -7/Recycling | Discovered new exit (range 16) 3061 | -7/Recycling | Scanned before Scraplab entrance 3090 | -7/Recycling | Entered Scraplab 3109 | -7/Recycling | Discovered new exit (range 3) 3145 | -7/Recycling | Entered Scraptown 3145 | -7/Scraptown | Accompanied by 4 allies 3583 | -7/Scraptown | Visited SPCMW 3618 | -7/Scraptown | Heard Great Nut preacher, LISTEN AND RECITE! 3667 | -7/Scraptown | Visited Cave Peace 3757 | -7/Scraptown | Visited TADAMA 3819 | -7/Scraptown | Visited Bundlers 3973 | -7/Scraptown | Visited Symbiants 4166 | -7/Scraptown | Discovered new exit (range 11) 4561 | -7/Scraptown | Visited IN-MT5's Study 4610 | -7/Scraptown | Visited UFD Registry 4625 | -7/Scraptown | Visited CR-KLE's Repair Center 4639 | -7/Scraptown | CR-KLE repaired 2 parts 4674 | -7/Scraptown | Registered with UFD as "Flakchip" 4819 | -7/Scraptown | Guru changed UFD alias to "Macespawn" 4883 | -7/Scraptown | Scanned Subdweller tech in exchange for log data 4887 | -7/Scraptown | Learned Factory stockpile data 4889 | -7/Scraptown | Learned Factory security intel 4891 | -7/Scraptown | Learned location of 1 exit from Factory 4893 | -7/Scraptown | Learned Research security intel 4895 | -7/Scraptown | Learned location of Quarantine (-2) 5092 | -7/Scraptown | Visited Analyses Database 5137 | -7/Scraptown | Visited LU-1G1's Boring Crew 5416 | -7/Scraptown | Visited Abandonware Association 5451 | -7/Scraptown | Learned abandonware demo "POISON.EXE" 5451 | -7/Scraptown | Learned abandonware demo "MELTYB.EXE" 5504 | -7/Scraptown | Visited Science Guys 5580 | -7/Scraptown | Visited Scrapoid Research Area 5771 | -7/Scraptown | Visited Research Penetration Think Tank 6310 | -7/Scraptown | Visited Science Testing Area 6416 | -7/Scraptown | Delivered Scrap Shield to a Scientist 6617 | -7/Scraptown | Visited Scrapoid Pod Storage 6628 | -7/Scraptown | Found Scrapoid Pod 6684 | -7/Scraptown | Visited Scrap Suit Storage 6697 | -7/Scraptown | Found Scrap Suit 6701 | -7/Scraptown | Found Scrap Suit 6774 | -7/Scraptown | Discovered new exit (range 5) 6930 | -7/Scraptown | Visited DA-N13 Charitable Foundation 6940 | -7/Scraptown | Found DCF Scrap (28 items) 7649 | -7/Scraptown | System corruption cleaned by C-Scrubber 7660 | -7/Scraptown | Entered Factory 7660 | -5/Factory | Accompanied by 4 allies 7660 | -5/Factory | Evolved 10 slots: Power x1, Propulsion x2, Utility x6, Weapon x1 7661 | -5/Factory | Identified exit to Extension 7968 | -5/Factory | Lost 3 allies 8207 | -5/Factory | Lost 5 parts (2p2u1w) 8548 | -5/Factory | Self-destructed Last Messages --------------- 08416_ System corrupted: Matter fused (-7). 08417_ Acquired Kinecellerator. 08422_ K-01 Serf collects debris. 08423_ Scrap Suit cannibalized Angular Momentum Engine to repair Deuterium Engine. 08427_ K-01 Serf collects debris. 08457_ Acquired Neutrino Core. 08485_ System corrupted: Matter fused (-10). 08494_ ALERT: Rogue bot located, Programmers report to Factory Zone 3T. 08535_ Slug penetrates Wall. 08543_ Hvy. Battle Rifle destroyed. 08544_ Imp. Kinecellerator broken. 08544_ Overheating: Short circuit. 08545_ Slug penetrates Wall. 08546_ S-27 Virus destroyed. 08547_ Thermic Laser destroyed. 08548_ Slug penetrates Wall. 08548_ Humpback destroyed. [Achievement: Back For More] Map ----- +----------------------------------------------------+ | ?????????????# """" """" """" #?# #??????????#?? | | ?????????????# """" """" """" #?# ########?????? | | ?????????????# """" """" """" #?# # !#?##?#? | | ?????????????# """" """" """" #?# # ##????? | | ?????????????# #?# # """" #?????# | | ?????????????########+############# # """" #???### | | ??????????????????# + """" #???## | | ?????????????????## ######## # """" #??### | | ??????????????????# ####??## % ############# | | ??????????????????# ##?????# + | | ?????????????#????# ########+################ | | ????????????? ????# # #?????????????# | | ??????????????????# # "" #??#??????????# | | ????????????????? # # "Y #??????#??????# | | ??????????????????# !%!# "" #?#???????????# | | ??????????????????# # #??#?##?#?????# | | ??????????????????# / """ #?????????????# | | ??????????????????# # """ #???#?????#???# | | ??????????????????# # """ #???#?????#???? | | ?????????######+### ###########??????????????# | | ???????? #????????????????? ?????? | | ???????? ##########??????? ???????? | | ???????? #*] #?????#?????????? | | ???????? #*[/ #???????????????? | | ???????? #=[[! #??#????????????? | | ????????? ######### #@==!* #???????????????? | | ??????????????????# #=[/= #???????????????? | | ??????????????????# =!*| #?#?????????????? | | ??????????????????# [!p #???????????????? | | ??????????????????# p #???????????????? | | ??????????????????+ % #???????????????? | | ??????????????????# s #####???????????????? | | ??????????????????# s# """"???????????????????? | | ??????????????????# s# """""??????????????????? | | ??????????????????# # """ ??????????????????? | | ??????????????????# # ??????????????????????? | | ??????????????????# # !??????????????????????? | | ??????????????????# / ???????????????????????? | | ??????????????????# # ???????????????????????? | | ??????????????????# # ???????????????????????? | | ??????????????????# ?#???????????????????????? | | ??????????????????# ?????????????????????????? | | ??????????????????# ?????????????????????????? | | ??????????????????+ ?????????????????????????? | | ??????????????????# ?????????????????????????? | | ??????????????????? ?????????????????????????? | | ????????????????????? ?????????????????????????? | | ?????????????????????????????????????????????????? | | ?????????????????????????????????????????????????? | | ?????????????????????????????????????????????????? | +----------------------------------------------------+ Best States ------------- Heat Dissipation 62 Energy Generation 28 Energy Capacity 840 Matter Stores 300 Matter Capacity 300 Sight Range 16 Terrain Scan Range 16 Terrain Scan Density 10 Jamming Range 12 Armor Coverage 800 Evasion (%) 42 Recoil Reduction 1 Kinecelleration 40 Defensive Hacking 10 Item Schematics ----------------- Datajack | -10/Materials | Hacked Robot Schematics ------------------ None Fabricated ------------ Nothing Alien Tech Used ----------------- None Achievements -------------- Back For More Challenges ------------ None Game ------ Seed ControlLayeredPick Manual? 0 Play Time 01:04:42 Cumulative 34.3 hours Start 2024.08.09 @ 05:22:16 End 2024.08.09 @ 16:58:22 Sessions 4 Manual Loads 0 Difficulty Rogue Special Mode None Game No. 50 Rogue 42 Adventurer 8 Explorer 0 Win Type - Total 0 Types 0/0/0/0/0/0/0/0/0 Lore% 35 Gallery% 35 Achievement% 30 Wizard Run 0 Options --------- Layout 1 ASCII 0 Keyboard 0 Movement Arrows Keybinds 0 Fullscreen 1 Font 20/SmallcapsGlow Map View 54x42 Zoom Use 0% Tactical HUD 1 Map Filters NONE Filters NONE Steam 1 RUN: 3bbe7c2b-b08c-4828-86f4-30d26abb3af2